Workbook

Sheet Diabetes tracking chart
A1: Start date | B1: 2018-02-01 | C1: Monthly Mobile phone Log book diabete check list | K1: brought by ExcelMadeEasy.com
O2: Name of backup | P2: =TEXT(B1,"mmmm") & " " & TEXT(B1,"YYYY") -> February 2018 | AF2: do not touch this
B3: GL. Levels AM | C3: GL. Levels PM | D3: Medicine | E3: Feet check | F3: Teeth cleaned | G3: Fruits & Veggies | H3: Exercises (minutes) | I3: 7 days total | J3: Weight (kg or lb) | K3: Comment (feeling, time, medicine, …) | M3: Comments: | N3: ALL COLOR FIELDS MUST BE FILLED OUT | AF3: max | AG3: warning
A4: =B1 -> 2018-02-01 | B4: =RANDBETWEEN(2,8)*IF($P$7=2,18,1) -> 90 | C4: =RANDBETWEEN(2,8)*IF($P$7=2,18,1) -> 72 | D4: yes | E4: ok | F4: yes | G4: yes | H4: 20 | I4: =($P$4/7*6+H4) -> 148.5714286 | J4: 70 | K4: feeling good, slept well | M4: Enter previous month last 7 days total | P4: 150 | Q4: minutes | AF4: =MIN($P$22,$P$15) -> 144 | AG4: =MIN($P$21,$P$14) -> 126 | AH4: =MIN($P$20,$P$13) -> 72 | AI4: =MIN($P$19,$P$12) -> 54 | AJ4: =MIN($P$18,$P$11) -> 1.8
A5: =A4+1 -> 2018-02-02 | B5: =RANDBETWEEN(2,8)*IF($P$7=2,18,1) -> 72 | C5: 90 | D5: no | E5: blister | F5: yes | G5: no | H5: 40 | I5: =($P$4/7*5+H5+H4) -> 167.1428571 | J5: =IF(B5<>"",J4,"") -> 70 | K5: great day | AF5: =MIN($P$22,$P$15) -> 144 | AG5: =MIN($P$21,$P$14) -> 126 | AH5: =MIN($P$20,$P$13) -> 72 | AI5: =MIN($P$19,$P$12) -> 54 | AJ5: =MIN($P$18,$P$11) -> 1.8
A6: =A5+1 -> 2018-02-03 | B6: 126 | C6: 90 | D6: yes | E6: healed | F6: yes | G6: no | H6: 25 | I6: =($P$4/7*4+H6+H5+H4) -> 170.7142857 | J6: =IF(B6<>"",J5,"") -> 70 | K6: a bit dizzy | AF6: 144 | AG6: 126 | AH6: 72 | AI6: 54 | AJ6: 1.8
A7: 2018-02-04 | B7: 36 | C7: 90 | D7: yes | E7: ok | F7: yes | G7: no | H7: 0 | I7: =($P$4/7*3+H7+H6+H5+H4) -> 149.2857143 | J7: 70 | K7: too much sweets, no sport :-( | M7: Select: | P7: 2 | AF7: 144 | AG7: 126 | AH7: 72 | AI7: 54 | AJ7: 1.8
A8: 2018-02-05 | B8: 144 | C8: 90 | D8: no | E8: ok | F8: yes | G8: yes | H8: 30 | I8: =($P$4/7*2+H5+H7+H8+H6+H4) -> 157.8571429 | J8: 70 | K8: back to normal | AF8: 144 | AG8: 126 | AH8: 72 | AI8: 54 | AJ8: 1.8
A9: 2018-02-06 | B9: 72 | C9: 54 | D9: yes | E9: ok | F9: yes | G9: yes | H9: 0 | I9: =($P$4/7*1+H5+H7+H9+H8+H6+H4) -> 136.4285714 | J9: 70 | M9: SET your levels here by yourself (you can set the same or different for AM and PM) | AF9: 144 | AG9: 126 | AH9: 72 | AI9: 54 | AJ9: 1.8
A10: 2018-02-07 | B10: 54 | C10: 90 | D10: no | E10: ok | F10: no | G10: yes | H10: 40 | I10: =SUM(H4:H10) -> 155 | J10: 70 | M10: Morning | P10: =IF($P$7=1,"mmol/L","mg/dl") -> mg/dl | AF10: 144 | AG10: 126 | AH10: 72 | AI10: 54 | AJ10: 1.8
A11: 2018-02-08 | B11: 126 | C11: 108 | D11: yes | E11: ok | F11: yes | G11: yes | H11: 40 | I11: 175 | J11: 70 | K11: feeling great although 1 in AM | M11: lower level | P11: =IF(P7=1,1,18)*0.1 -> 1.8 | AF11: 144 | AG11: 126 | AH11: 72 | AI11: 54 | AJ11: 1.8
A12: 2018-02-09 | B12: 72 | C12: 72 | D12: no | E12: ok | F12: yes | G12: yes | H12: 40 | I12: 175 | J12: 70 | M12: low level warning (lower is danger) | P12: =IF(P7=1,1,18)*3 -> 54 | AF12: 144 | AG12: 126 | AH12: 72 | AI12: 54 | AJ12: 1.8
A13: 2018-02-10 | B13: 72 | C13: 108 | I13: 150 | M13: good level (higher is good) | P13: =IF(P7=1,1,18)*4 -> 72 | AF13: 144 | AG13: 126 | AH13: 72 | AI13: 54 | AJ13: 1.8
A14: 2018-02-11 | B14: 54 | C14: 144 | I14: 150 | M14: medium level (higher is warning) | P14: =IF(P7=1,1,18)*7 -> 126 | AF14: 144 | AG14: 126 | AH14: 72 | AI14: 54 | AJ14: 1.8
A15: 2018-02-12 | B15: 54 | C15: 72 | I15: 120 | M15: danger level(higher is danger) | P15: =IF(P7=1,1,18)*8 -> 144 | AF15: 144 | AG15: 126 | AH15: 72 | AI15: 54 | AJ15: 1.8
A16: 2018-02-13 | B16: 144 | C16: 36 | I16: 120 | AF16: 144 | AG16: 126 | AH16: 72 | AI16: 54 | AJ16: 1.8
A17: 2018-02-14 | B17: 54 | C17: 54 | I17: 80 | M17: Afternoon | P17: =IF($P$7=1,"mmol/L","mg/dl") -> mg/dl | AF17: 144 | AG17: 126 | AH17: 72 | AI17: 54 | AJ17: 1.8
A18: 2018-02-15 | B18: 72 | C18: 54 | I18: 40 | M18: lower level | P18: =IF(P7=1,1,18)*0.1 -> 1.8 | AF18: 144 | AG18: 126 | AH18: 72 | AI18: 54 | AJ18: 1.8
A19: 2018-02-16 | B19: 90 | C19: 72 | I19: 0 | M19: low level warning (lower is danger) | P19: =IF(P7=1,1,18)*3 -> 54 | AF19: 144 | AG19: 126 | AH19: 72 | AI19: 54 | AJ19: 1.8
A20: 2018-02-17 | I20: 0 | M20: good level (higher is good) | P20: =IF(P7=1,1,18)*4 -> 72 | AF20: 144 | AG20: 126 | AH20: 72 | AI20: 54 | AJ20: 1.8
A21: 2018-02-18 | I21: 0 | M21: medium level (higher is warning) | P21: =IF(P7=1,1,18)*7 -> 126 | AF21: 144 | AG21: 126 | AH21: 72 | AI21: 54 | AJ21: 1.8
A22: 2018-02-19 | I22: 0 | M22: danger level(higher is danger) | P22: =IF(P7=1,1,18)*8 -> 144 | AF22: 144 | AG22: 126 | AH22: 72 | AI22: 54 | AJ22: 1.8
A23: 2018-02-20 | I23: 0 | AF23: 144 | AG23: 126 | AH23: 72 | AI23: 54 | AJ23: 1.8
A24: 2018-02-21 | I24: 0 | M24: Information about diabetes | AF24: 144 | AG24: 126 | AH24: 72 | AI24: 54 | AJ24: 1.8
A25: 2018-02-22 | I25: 0 | M25: diabete.co.uk | O25: upon waking | P25: before meal | Q25: 90mn after meal | AF25: 144 | AG25: 126 | AH25: 72 | AI25: 54 | AJ25: 1.8
A26: 2018-02-23 | I26: 0 | M26: non diabetics | O26: mmol/L | P26: 4 to 5.9 | Q26: under 7.8 | AF26: 144 | AG26: 126 | AH26: 72 | AI26: 54 | AJ26: 1.8
A27: 2018-02-24 | I27: 0 | M27: for diabete type 2 | P27: 4 to 7 | Q27: under 8.5 | AF27: 144 | AG27: 126 | AH27: 72 | AI27: 54 | AJ27: 1.8
A28: 2018-02-25 | I28: 0 | M28: for diabete type 1 | O28: 5 to 7 | P28: 4 to 7 | Q28: 5 to 9 | AF28: 144 | AG28: 126 | AH28: 72 | AI28: 54 | AJ28: 1.8
A29: 2018-02-26 | I29: 0 | M29: children with diabete type 1 | O29: 4 to 7 | P29: 4 to 7 | Q29: 5 to 9 | AF29: 144 | AG29: 126 | AH29: 72 | AI29: 54 | AJ29: 1.8
A30: 2018-02-27 | I30: 0 | AF30: 144 | AG30: 126 | AH30: 72 | AI30: 54 | AJ30: 1.8
A31: 2018-02-28 | I31: 0 | M31: Information about diabetes (http://www.diabetes.org) | AF31: 144 | AG31: 126 | AH31: 72 | AI31: 54 | AJ31: 1.8
A32: 2018-03-01 | I32: 0 | M32: Ameri. Diabetes asso. | O32: upon waking | P32: before meal | Q32: 90mn after meal | AF32: 144 | AG32: 126 | AH32: 72 | AI32: 54 | AJ32: 1.8
A33: 2018-03-02 | I33: 0 | M33: non diabetics | O33: mg/dl | P33: 70 to 106 | Q33: under 140 | AF33: 144 | AG33: 126 | AH33: 72 | AI33: 54 | AJ33: 1.8
A34: 2018-03-03 | I34: 0 | M34: for diabete type 2 | P34: 70 to 120 | Q34: under 8.5 | AF34: 144 | AG34: 126 | AH34: 72 | AI34: 54 | AJ34: 1.8
M35: for diabete type 1 | O35: 90 to 120 | P35: 70 to 120 | Q35: 90 to 162 | AF35: 144 | AG35: 126 | AH35: 72 | AI35: 54 | AJ35: 1.8
M36: children with diabete type 1 | O36: 70 to 120 | P36: 70 to 120 | Q36: 90 to 162
M38: Conversion mmol/L to mg/dl: multiply by 18 the mmol/L to obtain mg/dL
M40: Feet Check: Check feet for blister, cut, redness, swelling, bruises
M43: Fruits and Veggies: Eat at least 2 or 3 servings of fruits and vegetables per day
M45: Exercise: | N45: recommended is that you do at least 150 minutes per weeks
N46: 7 day average should be higher than 150min
N47: (this is about 25minutes per day)
M50: Use our weight tracking chart to keep an eye of your weight.
M51: Or use our weight column in the table by selecting column I to K, then right click and unhide

Sheet disclaimer
A3: This sheet is provided free of charge and without any warranty whatsoever.
A4: No health related decision should be taken based on this sheet, only your doctor can tell you.
A5: The value in this sheet are only numerical examples and do not reflect the reality,
A6: You have to put the correct values into this sheet based on your doctor's advice.
A8: Eat healthy, do sport, move a lot, be active, have fun
A9: Don't watch to many violent movies, don't bully or be bad, enjoy life and let others enjoy it, be respectful
